bitfinex/quotes_BTCUSD_20250219
["timestamp","ask_amount","ask_price","bid_price","bid_amount"]
[1739998428445,0.0014258,96483.0,96482.0,0.289269]
[1739998428643,0.0014258,96483.0,96482.0,0.287269]
[1739998428918,0.0004258,96483.0,96482.0,0.291269]
[1739998429862,0.0004258,96483.0,96482.0,0.1378]
[1739998432707,0.1558928,96483.0,96482.0,0.1378]
[1739998433128,0.1558928,96483.0,96482.0,0.1386514]
[1739998433328,0.0004258,96483.0,96482.0,0.1386514]
[1739998433879,0.0004258,96483.0,96482.0,0.0879514]
[1739998433880,0.1558928,96483.0,96482.0,0.0879514]
[1739998434113,0.1558928,96483.0,96482.0,0.0028514]
[1739998434784,0.1558928,96483.0,96482.0,0.0068514]
[1739998435898,0.3790268,96483.0,96482.0,0.0068514]
[1739998436115,0.7821748,96483.0,96482.0,0.0068514]
[1739998436317,0.5154738,96483.0,96482.0,0.0068514]
[1739998436534,0.3951708,96483.0,96482.0,0.0068514]
[1739998436763,0.1558928,96483.0,96482.0,0.0048514]
[1739998437095,0.1578928,96483.0,96482.0,0.0048514]
[1739998437702,0.1578928,96483.0,96482.0,0.0008514]
[1739998437908,0.1578928,96483.0,96482.0,0.0018514]
[1739998438222,0.6811308,96483.0,96482.0,0.0018514]
[1739998438363,0.1578928,96483.0,96482.0,0.0018514]
[1739998438783,0.4664458,96483.0,96482.0,0.0018514]
[1739998439107,0.4684458,96483.0,96482.0,0.0018514]
[1739998441534,0.4055058,96483.0,96482.0,0.0018514]
[1739998442064,0.2831548,96483.0,96482.0,0.0018514]
[1739998442242,0.1578928,96483.0,96482.0,0.0018514]
[1739998442829,0.3375388,96483.0,96482.0,0.0018514]
[1739998443278,0.1578928,96483.0,96482.0,0.0018514]
[1739998443626,0.3374388,96483.0,96482.0,0.0018514]
[1739998443839,0.1578928,96483.0,96482.0,0.0018514]
[1739998444492,0.6270268,96483.0,96482.0,0.0018514]
[1739998444669,0.5855568,96483.0,96482.0,0.0018514]
[1739998446771,0.7811568,96483.0,96482.0,0.0018514]
[1739998446976,0.79740585,96483.0,96482.0,0.0018514]
[1739998448461,0.79740585,96483.0,96455.0,0.000851]
[1739998448462,0.155501,96462.0,96455.0,0.000851]
[1739998448714,1.774567,96462.0,96455.0,0.000851]
[1739998448933,2.455815,96462.0,96455.0,0.000851]
[1739998449171,2.44015393,96462.0,96455.0,0.000851]
[1739998449911,2.44015393,96462.0,96461.0,0.00146876]
[1739998450253,2.58545658,96462.0,96455.0,0.000851]
[1739998450451,0.305511,96456.0,96454.0,0.00039217]
[1739998450650,0.305522,96449.0,96448.0,0.00081705]
[1739998450890,3.316342,96449.0,96448.0,0.00081705]
[1739998451219,3.891507,96449.0,96448.0,0.00081705]
[1739998451428,0.305527,96446.0,96438.0,0.0008506]
[1739998451629,3.187173,96446.0,96438.0,0.0008506]
[1739998451831,3.028237,96446.0,96438.0,0.0008506]
[1739998452732,2.072604,96446.0,96438.0,0.0008506]
[1739998452890,2.077604,96446.0,96438.0,0.0008506]
[1739998453275,2.084604,96446.0,96438.0,0.0008506]
[1739998454506,2.09241986,96446.0,96438.0,0.0008506]
[1739998455516,2.08541986,96446.0,96438.0,0.0008506]
[1739998455942,2.09241986,96446.0,96438.0,0.0008506]
[1739998456182,2.08741986,96446.0,96438.0,0.0008506]
[1739998456357,2.08041986,96446.0,96438.0,0.0008506]
[1739998456588,1.78589286,96446.0,96438.0,0.0008506]
[1739998456963,1.80214901,96446.0,96438.0,0.0008506]
[1739998457369,1.95767601,96446.0,96438.0,0.0008506]
[1739998457750,1.95367601,96446.0,96438.0,0.0008506]
[1739998458366,0.18659901,96446.0,96438.0,0.0008506]
[1739998458596,2.77010601,96446.0,96438.0,0.0008506]
[1739998458797,2.47505401,96446.0,96438.0,0.0008506]
[1739998458952,1.66012601,96446.0,96438.0,0.0008506]
[1739998459514,1.65312601,96446.0,96438.0,0.0008506]
[1739998459667,1.66012601,96446.0,96438.0,0.0008506]
[1739998461601,1.51589801,96446.0,96438.0,0.0008506]
[1739998461806,1.44992901,96446.0,96438.0,0.0008506]
[1739998462387,1.24734501,96446.0,96438.0,0.0008506]
[1739998462970,0.79624801,96446.0,96438.0,0.0008506]
[1739998463240,0.73362301,96446.0,96438.0,0.0008506]
[1739998463444,0.82978486,96446.0,96438.0,0.0008506]
[1739998464429,0.82478486,96446.0,96438.0,0.0008506]
[1739998464627,0.82878486,96446.0,96438.0,0.0008506]
[1739998465257,0.78108086,96446.0,96438.0,0.0008506]
[1739998465544,0.78808086,96446.0,96438.0,0.0008506]
[1739998466527,0.773265,96446.0,96438.0,0.0008506]
[1739998466756,0.16034088,96446.0,96440.0,0.0472]
[1739998466964,0.02725488,96446.0,96440.0,0.0472]
[1739998467241,0.17178188,96446.0,96440.0,0.0472]
[1739998467542,0.17578188,96446.0,96440.0,0.0472]
[1739998467926,0.37891588,96446.0,96440.0,0.0472]
[1739998468124,0.32009288,96446.0,96440.0,0.0472]
[1739998468324,0.30736188,96446.0,96440.0,0.0472]
[1739998468627,0.31236188,96446.0,96440.0,0.0472]
[1739998469326,0.30736188,96446.0,96440.0,0.0472]
[1739998469500,0.31036188,96446.0,96440.0,0.0472]
[1739998469860,0.30736188,96446.0,96440.0,0.0472]
[1739998470241,0.29868788,96446.0,96440.0,0.0472]
[1739998471123,0.29911358,96446.0,96440.0,0.0472]
[1739998471763,0.44611358,96446.0,96438.0,0.0008506]
[1739998471985,0.305533,96442.0,96438.0,0.0008506]
[1739998472212,0.305538,96439.0,96438.0,0.0008506]
[1739998472410,3.815423,96439.0,96438.0,0.0008506]
[1739998473078,3.815423,96439.0,96431.0,0.001251]
[1739998473079,0.30555,96432.0,96431.0,0.001251]
[1739998473286,3.815435,96432.0,96431.0,0.001251]
[1739998473493,3.55493921,96432.0,96431.0,0.001251]
[1739998477244,3.56739751,96432.0,96431.0,0.00133158]
[1739998477453,0.37198851,96432.0,96431.0,0.00133158]
[1739998477651,3.52903651,96432.0,96431.0,0.00133158]
[1739998477851,3.88187351,96432.0,96431.0,0.00133158]
[1739998479951,2.20129951,96432.0,96431.0,0.00133158]
[1739998480155,1.80335151,96432.0,96431.0,0.00133158]
[1739998480528,1.56724551,96432.0,96431.0,0.00133158]
[1739998480933,0.56877851,96432.0,96431.0,0.00133158]
[1739998481135,0.04549084,96432.0,96431.0,0.00133158]
[1739998481308,0.41451184,96432.0,96431.0,0.00133158]
[1739998481519,0.56451184,96432.0,96431.0,0.00133158]
[1739998481854,0.55251184,96432.0,96431.0,0.00133158]
[1739998482064,0.55951184,96432.0,96431.0,0.00133158]
[1739998482257,0.56451184,96432.0,96431.0,0.00133158]
[1739998482430,0.55951184,96432.0,96431.0,0.00133158]
[1739998482589,0.55251184,96432.0,96431.0,0.00133158]
[1739998483046,0.55751184,96432.0,96431.0,0.00133158]
[1739998483797,0.54125421,96432.0,96431.0,0.00133158]
[1739998484443,0.46185121,96432.0,96431.0,0.00133158]
[1739998484641,0.45485121,96432.0,96431.0,0.00133158]
[1739998484817,0.45685121,96432.0,96431.0,0.00133158]
[1739998485189,0.46085121,96432.0,96431.0,0.00133158]
[1739998485665,0.45885121,96432.0,96431.0,0.00133158]
[1739998486048,0.45585121,96432.0,96431.0,0.00133158]
[1739998486436,0.46185121,96432.0,96431.0,0.00133158]
[1739998486853,0.47810831,96432.0,96431.0,0.00133158]
[1739998487506,0.48010831,96432.0,96431.0,0.00133158]
[1739998487650,0.34504031,96432.0,96431.0,0.00133158]
[1739998487845,0.33904031,96432.0,96431.0,0.00133158]
[1739998488047,2.79369731,96432.0,96431.0,0.00133158]
[1739998488347,1.97386731,96432.0,96431.0,0.00133158]
[1739998488544,1.96786731,96432.0,96431.0,0.00133158]
[1739998488888,1.97186731,96432.0,96431.0,0.00133158]
[1739998489284,1.97386731,96432.0,96431.0,0.00133158]
[1739998490267,1.74967031,96432.0,96431.0,0.00133158]
[1739998490470,0.18949031,96432.0,96431.0,0.00133158]
[1739998490645,0.03949031,96432.0,96431.0,0.08383158]
[1739998490823,0.04249031,96432.0,96431.0,0.08383158]
[1739998491145,0.03949031,96432.0,96431.0,0.08383158]
[1739998491443,0.80724631,96432.0,96431.0,0.08383158]
[1739998491601,0.91116531,96432.0,96431.0,0.08383158]
[1739998491804,0.65553531,96432.0,96431.0,0.08383158]
[1739998492359,0.64953531,96432.0,96431.0,0.08383158]
[1739998492791,0.0162571,96432.0,96431.0,0.28738258]
[1739998493192,0.0182571,96432.0,96431.0,0.13183158]
[1739998493829,0.0182571,96432.0,96431.0,0.28738258]
[1739998494006,0.002,96432.0,96431.0,0.13183158]
[1739998498294,0.002,96432.0,96431.0,0.28738258]
[1739998499693,0.002,96432.0,96431.0,0.13183158]
[1739998501751,0.002,96432.0,96431.0,0.28738258]
[1739998502055,0.002,96432.0,96431.0,0.13183158]
[1739998503695,0.002,96432.0,96431.0,0.28738258]
[1739998504094,0.002,96432.0,96431.0,0.30192343]
[1739998504301,0.002,96432.0,96431.0,0.40442708]
[1739998504526,0.0008514,96438.0,96432.0,0.01454085]
[1739998504730,0.0008514,96438.0,96437.0,0.38175946]
[1739998504938,0.0008514,96438.0,96437.0,0.48426311]
[1739998505342,0.0008514,96438.0,96437.0,0.50150077]
[1739998505539,0.0928149,96474.0,96437.0,0.67150077]
[1739998505769,0.0928149,96474.0,96445.0,0.29866985]
[1739998506021,0.1555,96463.0,96445.0,0.4011735]
[1739998506188,0.17260316,96464.0,96445.0,0.4011735]
[1739998506391,0.01710416,96464.0,96445.0,0.29866985]
[1739998506570,0.207339,96461.0,96445.0,0.29866985]
[1739998507168,0.01658291,96464.0,96445.0,0.1286]
[1739998507347,0.155519,96452.0,96445.0,0.1296]
[1739998507547,0.0014257,96446.0,96445.0,0.1296]
[1739998507810,0.1579527,96446.0,96445.0,0.1296]
[1739998507937,0.0024257,96446.0,96445.0,0.1296]
[1739998508144,0.0014257,96446.0,96445.0,0.1286]
[1739998508346,0.0004257,96446.0,96445.0,0.1286]
[1739998508661,0.0004257,96446.0,96445.0,0.1326]
[1739998509531,0.0014257,96446.0,96445.0,0.1326]
[1739998509912,0.0014257,96446.0,96445.0,0.288129]
[1739998510327,0.0014257,96446.0,96445.0,0.1326]
[1739998511556,0.0014257,96446.0,96445.0,0.288129]
[1739998512135,0.0014257,96446.0,96445.0,0.1326]
[1739998513067,0.22359366,96459.0,96445.0,0.1326]
[1739998513363,0.155513,96455.0,96445.0,0.288128]
[1739998513919,0.01625166,96459.0,96445.0,0.1286]
[1739998514600,0.155516,96453.0,96445.0,0.1286]
[1739998514803,0.01625166,96459.0,96445.0,0.1286]
[1739998515526,0.155508,96458.0,96445.0,0.1286]
[1739998516010,0.155513,96455.0,96447.0,0.155525]
[1739998516220,0.01625166,96459.0,96445.0,0.33797]
[1739998516429,0.155509,96458.0,96447.0,0.155524]
[1739998516585,0.01625166,96459.0,96445.0,0.1306]
[1739998516789,0.15551,96457.0,96446.0,0.207368]
[1739998516975,0.155508,96458.0,96448.0,0.155522]
[1739998517218,0.207333,96463.0,96448.0,0.155522]
[1739998517426,0.003,96459.0,96448.0,0.155523]
[1739998517626,0.003,96459.0,96447.0,0.001]
[1739998517866,0.0008514,96453.0,96448.0,0.207365]
[1739998518068,0.0008514,96453.0,96450.0,0.155519]
[1739998518270,0.0008514,96453.0,96445.0,0.1286]
[1739998518478,0.0008514,96453.0,96452.0,0.155517]
[1739998518682,0.0008514,96453.0,96452.0,0.232717]
[1739998520073,0.0008514,96453.0,96452.0,0.233717]
[1739998520614,0.0008514,96453.0,96452.0,0.232717]
[1739998520814,0.0008514,96453.0,96452.0,0.233717]
[1739998521390,0.0018514,96453.0,96452.0,0.234717]
[1739998521593,0.0018514,96453.0,96452.0,0.233717]
[1739998521796,0.0018514,96453.0,96452.0,0.235717]
[1739998523182,0.0018514,96453.0,96452.0,0.0802]
[1739998523788,0.0018514,96453.0,96452.0,0.235717]
[1739998527046,0.0018514,96453.0,96452.0,0.25025785]
[1739998528735,0.0018514,96453.0,96452.0,0.29765785]
[1739998529968,0.0018514,96453.0,96452.0,0.29665785]
[1739998530165,0.0008514,96453.0,96452.0,0.29665785]
[1739998530373,0.0008514,96453.0,96452.0,0.29565785]
[1739998530374,0.0018514,96453.0,96452.0,0.29565785]
[1739998530591,0.0028514,96453.0,96452.0,0.29965785]
[1739998531020,0.0028514,96453.0,96452.0,0.29565785]
[1739998531426,0.0038514,96453.0,96452.0,0.30065785]
[1739998531829,0.0028514,96453.0,96452.0,0.29565785]
[1739998532227,0.0018514,96453.0,96452.0,0.29965785]
[1739998532407,0.0028514,96453.0,96452.0,0.30665785]
[1739998532607,0.0028514,96453.0,96452.0,0.57105721]
[1739998532808,0.0018514,96453.0,96452.0,0.56405721]
[1739998533055,0.0028514,96453.0,96452.0,0.57105721]
[1739998534362,0.0018514,96453.0,96452.0,0.56605721]
[1739998534725,0.0028514,96453.0,96452.0,0.57105721]
[1739998535128,0.0008514,96453.0,96452.0,0.55905721]
[1739998535332,0.0008514,96453.0,96452.0,0.56405721]
[1739998535574,0.0028514,96453.0,96452.0,0.57005721]
[1739998536424,0.0028514,96453.0,96452.0,0.41454021]
[1739998536834,0.0028514,96453.0,96452.0,0.27539936]
[1739998537040,0.0028514,96453.0,96452.0,0.28994021]
[1739998537386,0.0028514,96453.0,96452.0,0.27539936]
[1739998538098,0.0028514,96453.0,96452.0,0.28994021]
[1739998538601,0.0028514,96453.0,96452.0,0.02554085]
[1739998539202,0.0028514,96453.0,96452.0,0.18105785]
[1739998540833,0.0028514,96453.0,96452.0,0.18148345]
[1739998544871,0.0028514,96453.0,96452.0,0.26008345]
[1739998545976,0.0028514,96453.0,96452.0,0.30678345]
[1739998546182,0.0028514,96453.0,96452.0,0.4092871]
[1739998548729,0.0028514,96453.0,96452.0,0.67368646]
[1739998549121,0.0028514,96453.0,96452.0,0.69401933]
[1739998549765,0.0018514,96453.0,96452.0,0.68801933]
[1739998550127,0.0018514,96453.0,96452.0,0.68901933]
[1739998550496,0.0028514,96453.0,96452.0,0.69601933]
[1739998553467,0.0028514,96453.0,96452.0,1.23941933]
[1739998559173,0.0008512,96456.0,96452.0,1.23941933]
[1739998559174,2e-07,96456.0,96455.0,0.175512]
[1739998559328,2e-07,96456.0,96455.0,1.33403347]
[1739998559915,2e-07,96456.0,96455.0,1.44343347]
[1739998560156,0.0004257,96488.0,96455.0,1.44343347]
[1739998560157,0.0004257,96488.0,96469.0,0.02]
[1739998560348,0.0004257,96488.0,96482.0,0.30060985]
[1739998560690,0.0004257,96488.0,96482.0,0.66751286]
[1739998561543,0.00085879,96483.0,96482.0,0.66751286]
[1739998561943,0.00085879,96483.0,96482.0,0.68843677]
[1739998562478,0.00085879,96483.0,96482.0,0.57600921]
[1739998562912,0.00085879,96483.0,96482.0,0.57000921]
[1739998563679,0.00085879,96483.0,96482.0,0.56500921]
[1739998564094,0.00085879,96483.0,96482.0,0.57200921]
[1739998564259,0.00085879,96483.0,96482.0,0.57900921]
[1739998565248,0.00085879,96483.0,96482.0,0.42354021]
[1739998565472,0.627728,96483.0,96482.0,0.014]
[1739998565680,2.4412205,96483.0,96482.0,0.014]
[1739998565890,1.627163,96483.0,96482.0,0.014]
[1739998566710,1.627163,96483.0,96482.0,0.007]
[1739998566919,1.64341351,96483.0,96482.0,0.007]
[1739998567141,1.64341351,96483.0,96482.0,0.011]
[1739998567564,1.64341351,96483.0,96455.0,0.0008512]
[1739998567565,0.305511,96456.0,96455.0,0.0008512]
[1739998567700,1.583991,96456.0,96455.0,0.0008512]
[1739998567905,2.025426,96456.0,96455.0,0.0008512]
[1739998568102,1.661841,96456.0,96455.0,0.0008512]
[1739998568313,0.58283544,96456.0,96455.0,0.0008512]
[1739998568521,0.45574544,96456.0,96455.0,0.0008512]
[1739998569136,0.45574544,96456.0,96455.0,0.0028512]
[1739998570791,0.32176344,96456.0,96455.0,0.0028512]
[1739998571210,1.64055378,96456.0,96455.0,0.0028512]
[1739998571389,2.00489278,96456.0,96455.0,0.0028512]
[1739998571610,1.73340778,96456.0,96455.0,0.0008512]
[1739998571830,1.73740778,96456.0,96455.0,0.0008512]
[1739998572578,1.73740778,96456.0,96455.0,0.0018512]
[1739998572579,1.74440778,96456.0,96455.0,0.0018512]
[1739998573633,1.75229709,96456.0,96455.0,0.0018512]
[1739998574003,1.73604465,96456.0,96455.0,0.0018512]
[1739998574587,1.8385483,96456.0,96455.0,0.0018512]
[1739998575275,1.73604465,96456.0,96455.0,0.0018512]
[1739998576943,1.75272504,96456.0,96455.0,0.0018512]
[1739998577834,1.68652204,96456.0,96455.0,0.0018512]
[1739998578007,1.69420204,96456.0,96455.0,0.0018512]
[1739998578645,1.53652204,96456.0,96455.0,0.0018512]
[1739998578851,0.38442873,96456.0,96455.0,0.0018512]
[1739998579283,0.53442873,96456.0,96455.0,0.0018512]
[1739998584027,0.51817394,96456.0,96455.0,0.0018512]
[1739998586937,0.62067759,96456.0,96455.0,0.0018512]
[1739998588083,0.51817394,96456.0,96455.0,0.0018512]
[1739998588290,0.53442821,96456.0,96455.0,0.0018512]
[1739998589134,0.53442821,96456.0,96425.0,0.0801]
[1739998589135,0.305527,96446.0,96425.0,0.0801]
[1739998589336,0.305527,96446.0,96418.0,0.0807]
[1739998589337,0.30555,96432.0,96418.0,0.0807]
[1739998589668,2.006176,96432.0,96418.0,0.0807]
[1739998589852,2.49787563,96432.0,96418.0,0.0807]
[1739998589992,2.23183463,96432.0,96418.0,0.0807]
[1739998590420,2.23183463,96432.0,96431.0,0.00168399]
[1739998591089,2.20637363,96432.0,96431.0,0.00168399]
[1739998591587,2.21037363,96432.0,96431.0,0.00168399]
[1739998591790,2.23135977,96432.0,96431.0,0.00168399]
[1739998592211,2.22735977,96432.0,96431.0,0.00168399]
[1739998592369,2.23435977,96432.0,96431.0,0.00268399]
[1739998592711,2.23835977,96432.0,96431.0,0.00268399]
[1739998593758,2.23135977,96432.0,96431.0,0.00168399]
[1739998594125,2.22110414,96432.0,96431.0,0.00168399]
[1739998594502,1.91155414,96432.0,96431.0,0.00168399]
[1739998594691,2.07010414,96432.0,96431.0,0.00168399]
[1739998595747,0.18553614,96432.0,96431.0,0.00168399]
[1739998595952,3.46195914,96432.0,96431.0,0.00168399]
[1739998596176,3.04565814,96432.0,96431.0,0.00168399]
[1739998596333,3.03170814,96432.0,96431.0,0.00168399]
[1739998596534,2.73100914,96432.0,96431.0,0.00168399]
[1739998597199,2.74726731,96432.0,96431.0,0.00168399]
[1739998601261,2.65162131,96432.0,96431.0,0.00168399]
[1739998603845,2.63536314,96432.0,96431.0,0.00168399]
[1739998606103,0.33553614,96432.0,96431.0,0.00168399]
[1739998606307,3.84542114,96432.0,96431.0,0.00168399]
[1739998606911,3.8616792,96432.0,96431.0,0.00168399]
[1739998607210,3.7143932,96432.0,96431.0,0.00168399]
[1739998607421,2.8955502,96432.0,96431.0,0.00168399]
[1739998607622,2.4162622,96432.0,96431.0,0.00168399]
[1739998607765,2.1914952,96432.0,96431.0,0.00168399]
[1739998612289,2.1919207,96432.0,96431.0,0.00168399]
[1739998613753,2.17566264,96432.0,96431.0,0.00168399]
[1739998616186,0.305582,96412.0,96411.0,0.0807]
[1739998616361,0.15559,96407.0,96406.0,0.0465]
[1739998616562,1.641454,96407.0,96406.0,0.04658058]
[1739998616770,2.611638,96407.0,96406.0,0.04658058]
[1739998616973,2.686184,96407.0,96406.0,0.04658058]
[1739998617165,2.65030975,96407.0,96406.0,0.04658058]
[1739998617346,2.52947575,96407.0,96406.0,0.04658058]
[1739998617713,1.47514275,96407.0,96406.0,0.04658058]
[1739998617916,1.16211875,96407.0,96406.0,0.04658058]
[1739998618116,0.60938768,96407.0,96406.0,0.04658058]
[1739998618751,0.61038768,96407.0,96406.0,0.04658058]
[1739998620337,0.19203468,96407.0,96406.0,0.04658058]
[1739998620693,0.93271568,96407.0,96406.0,0.04658058]
[1739998620904,1.08271568,96407.0,96406.0,0.04658058]
[1739998621118,1.04879768,96407.0,96406.0,0.04658058]
[1739998621329,0.50270968,96407.0,96406.0,0.04658058]
[1739998621728,0.18644468,96407.0,96406.0,0.12938058]
[1739998621938,0.03644468,96407.0,96406.0,0.12938058]
[1739998622365,0.19203468,96407.0,96406.0,0.12938058]
[1739998624021,0.17577475,96407.0,96406.0,0.12938058]
[1739998624870,0.17577475,96407.0,96406.0,0.12980608]
[1739998625314,0.32577475,96407.0,96406.0,0.12980608]
[1739998627015,0.34203479,96407.0,96406.0,0.12980608]
[1739998627216,2.24119379,96407.0,96406.0,0.00050608]
[1739998627447,0.155614,96392.0,96391.0,0.0012512]
[1739998627672,0.305614,96392.0,96391.0,0.00138122]
[1739998628077,2.012723,96392.0,96391.0,0.00138122]
[1739998628274,1.09472681,96392.0,96391.0,0.00138122]
[1739998628478,1.01714981,96392.0,96391.0,0.00138122]
[1739998629478,0.96744281,96392.0,96391.0,0.00138122]
[1739998629677,0.97344281,96392.0,96391.0,0.00138122]
[1739998630360,0.96744281,96392.0,96391.0,0.00138122]
[1739998630505,0.97744281,96392.0,96391.0,0.00138122]
[1739998630961,0.97344281,96392.0,96391.0,0.00138122]
[1739998631716,0.97644281,96392.0,96391.0,0.00138122]
[1739998632041,0.97044281,96392.0,96391.0,0.00138122]
[1739998632246,0.97644281,96392.0,96391.0,0.00138122]
[1739998632658,0.97044281,96392.0,96391.0,0.00138122]
[1739998632865,0.96744281,96392.0,96391.0,0.00138122]
[1739998633472,0.97844281,96392.0,96391.0,0.00138122]
[1739998633878,0.95518,96392.0,96391.0,0.00138122]
[1739998634059,0.95118,96392.0,96391.0,0.00138122]
[1739998634360,0.305614,96392.0,96391.0,0.00138122]
[1739998634793,3.509885,96392.0,96391.0,0.00138122]
[1739998634907,0.159614,96392.0,96391.0,0.00138122]
[1739998635111,3.676499,96392.0,96391.0,0.00138122]
[1739998635667,3.669499,96392.0,96391.0,0.00138122]
[1739998636021,3.676499,96392.0,96391.0,0.00138122]
[1739998636364,3.672499,96392.0,96391.0,0.00138122]
[1739998636566,3.676499,96392.0,96391.0,0.00138122]
[1739998637014,3.69276259,96392.0,96391.0,0.00138122]
[1739998637193,3.84276259,96392.0,96391.0,0.00138122]
[1739998637389,2.64714959,96392.0,96391.0,0.00138122]
[1739998637587,2.47104359,96392.0,96391.0,0.00138122]
[1739998639163,2.19777659,96392.0,96391.0,0.00138122]
[1739998639363,1.75298359,96392.0,96391.0,0.00138122]
[1739998639973,1.57263059,96392.0,96391.0,0.00138122]
[1739998643862,1.556367,96392.0,96391.0,0.00138122]
[1739998646877,1.57263095,96392.0,96391.0,0.00138122]
[1739998648534,1.57348235,96392.0,96391.0,0.00138122]
[1739998649074,1.3414273,96392.0,96391.0,0.00138122]
[1739998649594,1.4970413,96392.0,96391.0,0.00138122]
[1739998651837,0.36795535,96392.0,96391.0,0.12408122]
[1739998652038,0.30954535,96392.0,96391.0,0.12408122]
[1739998652247,0.15393135,96392.0,96391.0,0.12408122]
[1739998652450,0.01711535,96392.0,96391.0,0.12408122]
[1739998653073,0.17272935,96392.0,96391.0,0.12408122]
[1739998653815,0.1564654,96392.0,96391.0,0.12408122]
[1739998654626,0.1614654,96392.0,96391.0,0.12408122]
[1739998655078,0.1564654,96392.0,96391.0,0.12408122]
[1739998655601,0.1574654,96392.0,96391.0,0.12408122]
[1739998656164,1.0409344,96392.0,96391.0,0.12408122]
[1739998656365,2.3567984,96392.0,96391.0,0.00138122]
[1739998656725,1.5618264,96392.0,96391.0,0.00138122]
[1739998657155,1.2562124,96392.0,96391.0,0.00138122]
[1739998657342,1.2562124,96392.0,96391.0,0.28399722]
[1739998657343,0.0018514,96392.0,96391.0,0.28399722]
[1739998657895,0.0018514,96392.0,96391.0,0.12838122]
[1739998658304,0.0008514,96392.0,96391.0,0.12838122]
[1739998658508,0.0028514,96392.0,96391.0,0.12838122]
[1739998659189,0.1584654,96392.0,96391.0,0.12838122]
[1739998660072,0.1564654,96392.0,96391.0,0.12838122]
[1739998660428,0.1564654,96392.0,96391.0,0.13038122]
[1739998660786,0.1564654,96392.0,96391.0,0.13238122]
[1739998661033,0.1564654,96392.0,96391.0,0.13038122]
[1739998661211,1.19733963,96392.0,96391.0,0.13138122]
[1739998661417,0.67187363,96392.0,96391.0,0.13138122]
[1739998661619,0.53973563,96392.0,96391.0,0.13138122]
[1739998661781,0.49483663,96392.0,96391.0,0.13138122]
[1739998663321,0.17272763,96392.0,96391.0,0.13138122]
[1739998663526,0.58738763,96392.0,96391.0,0.13138122]
[1739998663844,0.60611163,96392.0,96391.0,0.13138122]
[1739998664046,0.5898494,96392.0,96391.0,0.13138122]
[1739998667823,0.3048164,96392.0,96391.0,0.13138122]
[1739998667979,0.0008514,96392.0,96391.0,0.13138122]
[1739998668398,0.01711349,96392.0,96391.0,0.13138122]
[1739998668691,0.17272749,96392.0,96391.0,0.13138122]
[1739998669094,0.42654949,96392.0,96391.0,0.13138122]
[1739998670753,1.88955849,96392.0,96391.0,0.13138122]
[1739998670954,1.15226549,96392.0,96391.0,0.13138122]
[1739998671180,1.15226549,96392.0,96391.0,0.08268122]
[1739998671359,1.15226549,96392.0,96391.0,0.00438122]
[1739998673404,1.30226549,96392.0,96391.0,0.00438122]
[1739998673810,1.2860034,96392.0,96391.0,0.00438122]
[1739998674411,1.2860034,96392.0,96391.0,0.00238122]
[1739998675357,1.2860034,96392.0,96391.0,0.00138122]
[1739998675534,1.2920034,96392.0,96391.0,0.00138122]
[1739998675736,0.3154654,96392.0,96391.0,0.00138122]
[1739998675940,2.7371414,96392.0,96391.0,0.00138122]
[1739998676117,3.8253504,96392.0,96391.0,0.00138122]
[1739998676319,2.7010144,96392.0,96391.0,0.00138122]
[1739998677586,2.5459274,96392.0,96391.0,0.00138122]
[1739998678435,2.56219093,96392.0,96391.0,0.00138122]
[1739998683122,2.56261663,96392.0,96391.0,0.00138122]
[1739998683903,2.5463531,96392.0,96391.0,0.00138122]
[1739998684332,2.5463531,96392.0,96391.0,0.08078122]
[1739998684333,0.0094257,96392.0,96391.0,0.08078122]
[1739998684738,0.3150397,96392.0,96391.0,0.08078122]
[1739998685306,0.3090397,96392.0,96391.0,0.08078122]
[1739998685534,0.3080397,96392.0,96391.0,0.08078122]
[1739998686172,0.1524257,96392.0,96391.0,0.08078122]
[1739998686904,0.0024257,96392.0,96391.0,0.08078122]
[1739998687076,0.0024257,96392.0,96391.0,0.28509722]
[1739998687680,0.0024257,96392.0,96391.0,0.12948122]
[1739998687866,0.0004257,96392.0,96391.0,0.28509722]
[1739998688303,0.0014257,96392.0,96391.0,0.28909722]
[1739998688512,0.0014257,96392.0,96391.0,0.13348122]
[1739998688807,0.0014257,96392.0,96391.0,0.13248122]
[1739998689047,0.0024257,96392.0,96391.0,0.13648122]
[1739998689386,0.0014257,96392.0,96391.0,0.13348122]
[1739998689699,0.0024257,96392.0,96391.0,0.13648122]
[1739998689907,0.0024257,96392.0,96391.0,0.29209722]
[1739998690903,0.0024257,96392.0,96391.0,0.13648122]
[1739998693288,0.1580397,96392.0,96391.0,0.13648122]
[1739998693842,0.17430142,96392.0,96391.0,0.13648122]
[1739998693951,0.5872447,96392.0,96391.0,0.13648122]
[1739998694151,0.5440817,96392.0,96391.0,0.13648122]
[1739998694412,0.5430817,96392.0,96391.0,0.13248122]
[1739998694653,0.5430817,96392.0,96391.0,0.08378122]
[1739998694854,0.5430817,96392.0,96391.0,0.00438122]
[1739998694982,0.5420817,96392.0,96391.0,0.00138122]
[1739998695911,0.5420817,96392.0,96391.0,0.00738122]
[1739998696091,0.5420817,96392.0,96391.0,0.00438122]
[1739998696916,0.7083447,96392.0,96391.0,0.00438122]
[1739998697889,0.7083447,96392.0,96391.0,0.00138122]
[1739998698063,0.7103447,96392.0,96391.0,0.00138122]
[1739998698567,0.7123447,96392.0,96391.0,0.00138122]
[1739998698773,0.7193447,96392.0,96391.0,0.00138122]
[1739998698995,0.7233447,96392.0,96391.0,0.00138122]
[1739998702787,0.73100564,96392.0,96391.0,0.00138122]
[1739998703649,0.34496364,96392.0,96391.0,0.00138122]
[1739998703851,3.83858564,96392.0,96391.0,0.00138122]
[1739998704453,3.84622564,96392.0,96391.0,0.00138122]
[1739998705109,1.01597764,96392.0,96391.0,0.00138122]
[1739998706914,1.01597764,96392.0,96391.0,0.07778122]
[1739998707114,0.68503375,96392.0,96391.0,0.07778122]
[1739998707527,0.58158381,96392.0,96391.0,0.07778122]
[1739998707896,0.53569881,96392.0,96391.0,0.07778122]
[1739998709239,0.52283681,96392.0,96391.0,0.07778122]
[1739998714055,0.5065727,96392.0,96391.0,0.07778122]
[1739998716973,0.52283563,96392.0,96391.0,0.07778122]
[1739998720336,0.33730263,96392.0,96391.0,0.07778122]
[1739998720750,0.81853563,96392.0,96391.0,0.07778122]
[1739998722507,0.80587363,96392.0,96391.0,0.07778122]
[1739998722869,0.79184463,96392.0,96391.0,0.07778122]
[1739998723291,0.73968663,96392.0,96391.0,0.07778122]
[1739998723915,0.7234237,96392.0,96391.0,0.07778122]
[1739998725249,0.1710397,96392.0,96391.0,0.07778122]
[1739998725927,0.5620417,96392.0,96391.0,0.07778122]
[1739998726142,0.5540417,96392.0,96391.0,0.07778122]
[1739998726361,0.5410067,96392.0,96391.0,0.07778122]
[1739998726805,0.5335067,96392.0,96391.0,0.07778122]
[1739998728135,0.5265067,96392.0,96391.0,0.07878122]
[1739998728340,0.17430215,96392.0,96391.0,0.07878122]